[Event "Allsvenskan Div II 5 2023/2024: SS Manhem III - Molndals SK"]
[Site "Goteborgs schackcentrum, Vegatan 20, Gothenburg, Sweden"]
[Date "2023.12.02"]
[Round "1.1"]
[White "Karlzen, Henrik"]
[Black "Recktenwald, Christian"]
[Result "1-0"]
[TimeControl "90 minutes for 40 moves + 30 minutes for the rest of the game + 30 seconds per move from move one."]
[WhiteFideId "1709380"]
[BlackFideId "1728709"]
[WhiteElo "2159"]
[BlackElo "1809"]

1. d4 {[%clk 01:30:54]} {[%emt 00:00:05]} Nf6 {[%clk 01:30:52]} {[%emt
00:00:08]} 2. c4 {[%clk 01:31:16]} {[%emt 00:00:08]} e6 {[%clk 01:31:14]}
{[%emt 00:00:08]} 3. Nf3 {[%clk 01:31:41]} {[%emt 00:00:05]} c5 {[%clk
01:31:30]} {[%emt 00:00:14]} 4. d5 {[%clk 01:31:18]} {[%emt 00:00:55]} exd5
{[%clk 01:29:42]} {[%emt 00:02:17]} 5. cxd5 {[%clk 01:31:25]} {[%emt 00:00:23]}
g6 {[%clk 01:29:31]} {[%emt 00:00:41]} 6. Bf4 {[%clk 01:25:17]} {[%emt
00:06:38]} Bg7 {[%clk 01:26:11]} {[%emt 00:03:50]} 7. Nc3 {[%clk 01:22:17]}
{[%emt 00:03:30]} d6 {[%clk 01:22:15]} {[%emt 00:04:26]} 8. Qa4+ {[%clk
01:18:15]} {[%emt 00:04:32]} Bd7 {[%clk 01:10:26]} {[%emt 00:12:19]} 9. Qb3
{[%clk 01:18:26]} {[%emt 00:00:19]} Qc7 {[%clk 01:07:24]} {[%emt 00:03:31]} 10.
e4 {[%clk 00:47:50]} {[%emt 00:31:07]} O-O {[%clk 01:00:54]} {[%emt 00:07:00]}
11. Be2 {[%clk 00:40:38]} {[%emt 00:07:42]} Nh5 {[%clk 00:47:37]} {[%emt
00:13:47]} 12. Bg5 {[%clk 00:38:00]} {[%emt 00:03:08]} Bg4 {[%clk 00:42:49]}
{[%emt 00:05:17]} 13. O-O {[%clk 00:27:26]} {[%emt 00:11:05]} Re8 {[%clk
00:39:11]} {[%emt 00:04:08]} 14. h3 {[%clk 00:15:45]} {[%emt 00:12:11]} Bxf3
{[%clk 00:38:25]} {[%emt 00:01:16]} 15. Bxf3 {[%clk 00:16:07]} {[%emt
00:00:08]} Nd7 {[%clk 00:32:57]} {[%emt 00:05:58]} 16. Bxh5 {[%clk 00:15:30]}
{[%emt 00:01:07]} gxh5 {[%clk 00:32:27]} {[%emt 00:01:00]} 17. Rae1 {[%clk
00:13:04]} {[%emt 00:02:56]} a6 {[%clk 00:30:12]} {[%emt 00:02:45]} 18. Qd1
{[%clk 00:13:03]} {[%emt 00:00:31]} Ne5 {[%clk 00:28:32]} {[%emt 00:02:09]} 19.
Qxh5 {[%clk 00:12:50]} {[%emt 00:00:44]} b5 {[%clk 00:25:59]} {[%emt 00:03:03]}
20. Re3 {[%clk 00:12:07]} {[%emt 00:01:13]} c4 {[%clk 00:21:57]} {[%emt
00:04:31]} 21. Rg3 {[%clk 00:11:50]} {[%emt 00:00:47]} Ng6 {[%clk 00:20:57]}
{[%emt 00:01:31]} 22. f4 {[%clk 00:11:45]} {[%emt 00:00:35]} Kh8 {[%clk
00:15:45]} {[%emt 00:05:41]} 23. f5 {[%clk 00:11:32]} {[%emt 00:00:44]} Bd4+
{[%clk 00:12:56]} {[%emt 00:03:18]} 24. Kh1 {[%clk 00:11:46]} {[%emt 00:00:17]}
Ne7 {[%clk 00:12:03]} {[%emt 00:01:23]} 25. Qxf7 {[%clk 00:09:33]} {[%emt
00:02:43]} 1-0

[Event "Allsvenskan Div II 5 2023/2024: SS Manhem III - Molndals SK"]
[Site "Goteborgs schackcentrum, Vegatan 20, Gothenburg, Sweden"]
[Date "2023.12.02"]
[Round "1.2"]
[White "Andreasson, Vincent"]
[Black "Nilsson, Jorgen"]
[Result "0-1"]
[TimeControl "90 minutes for 40 moves + 30 minutes for the rest of the game + 30 seconds per move from move one."]
[WhiteFideId "1721321"]
[BlackFideId "1723812"]
[WhiteElo "2000"]
[BlackElo "2062"]

1. d4 {[%clk 01:30:54]} {[%emt 00:00:05]} g6 {[%clk 01:30:54]} {[%emt
00:00:07]} 2. e4 {[%clk 01:30:56]} {[%emt 00:00:28]} Bg7 {[%clk 01:31:19]}
{[%emt 00:00:05]} 3. c4 {[%clk 01:28:37]} {[%emt 00:02:50]} d6 {[%clk
01:29:35]} {[%emt 00:02:14]} 4. Nc3 {[%clk 01:28:41]} {[%emt 00:00:26]} Nf6
{[%clk 01:29:59]} {[%emt 00:00:06]} 5. Be2 {[%clk 01:28:46]} {[%emt 00:00:25]}
e5 {[%clk 01:27:04]} {[%emt 00:03:25]} 6. Nf3 {[%clk 01:24:00]} {[%emt
00:05:15]} O-O {[%clk 01:23:35]} {[%emt 00:04:00]} 7. h3 {[%clk 01:15:24]}
{[%emt 00:09:05]} Nc6 {[%clk 01:02:51]} {[%emt 00:21:15]} 8. Be3 {[%clk
01:09:38]} {[%emt 00:06:15]} Qe8 {[%clk 00:46:01]} {[%emt 00:17:21]} 9. Qd3
{[%clk 01:06:44]} {[%emt 00:03:24]} Nxe4 {[%clk 00:36:44]} {[%emt 00:09:46]} 10.
Qxe4 {[%clk 00:53:46]} {[%emt 00:13:28]} exd4 {[%clk 00:37:00]} {[%emt
00:00:14]} 11. Qxe8 {[%clk 00:46:45]} {[%emt 00:07:31]} Rxe8 {[%clk 00:37:20]}
{[%emt 00:00:10]} 12. Nd5 {[%clk 00:46:34]} {[%emt 00:00:42]} dxe3 {[%clk
00:37:20]} {[%emt 00:00:29]} 13. Nxc7 {[%clk 00:46:19]} {[%emt 00:00:46]} Bf5
{[%clk 00:37:33]} {[%emt 00:00:16]} 14. Nxa8 {[%clk 00:46:20]} {[%emt
00:00:29]} Rxa8 {[%clk 00:35:47]} {[%emt 00:02:16]} 15. fxe3 {[%clk 00:44:20]}
{[%emt 00:02:31]} Bxb2 {[%clk 00:35:58]} {[%emt 00:00:19]} 16. Rd1 {[%clk
00:44:15]} {[%emt 00:00:35]} Ba3 {[%clk 00:36:04]} {[%emt 00:00:24]} 17. Kf2
{[%clk 00:43:39]} {[%emt 00:01:07]} Re8 {[%clk 00:36:01]} {[%emt 00:00:32]} 18.
Bd3 {[%clk 00:40:58]} {[%emt 00:03:11]} Bc5 {[%clk 00:35:25]} {[%emt 00:01:06]}
19. Rhe1 {[%clk 00:40:42]} {[%emt 00:00:46]} Be6 {[%clk 00:26:54]} {[%emt
00:09:02]} 20. Ng5 {[%clk 00:40:22]} {[%emt 00:00:49]} Ne5 {[%clk 00:25:58]}
{[%emt 00:01:26]} 21. Nxe6 {[%clk 00:40:23]} {[%emt 00:00:29]} Rxe6 {[%clk
00:26:02]} {[%emt 00:00:26]} 22. Bf1 {[%clk 00:36:00]} {[%emt 00:04:53]} b6
{[%clk 00:24:52]} {[%emt 00:01:41]} 23. Rd5 {[%clk 00:32:26]} {[%emt 00:04:03]}
f5 {[%clk 00:23:29]} {[%emt 00:01:53]} 24. g3 {[%clk 00:32:27]} {[%emt
00:00:29]} g5 {[%clk 00:23:20]} {[%emt 00:00:38]} 25. Kg2 {[%clk 00:29:44]}
{[%emt 00:03:13]} Kg7 {[%clk 00:23:27]} {[%emt 00:00:24]} 26. e4 {[%clk
00:26:22]} {[%emt 00:03:53]} f4 {[%clk 00:23:30]} {[%emt 00:00:26]} 27. gxf4
{[%clk 00:26:22]} {[%emt 00:00:30]} gxf4 {[%clk 00:23:53]} {[%emt 00:00:07]} 28.
Be2 {[%clk 00:25:38]} {[%emt 00:01:14]} Rg6+ {[%clk 00:23:10]} {[%emt
00:01:13]} 29. Kh2 {[%clk 00:25:39]} {[%emt 00:00:29]} f3 {[%clk 00:23:31]}
{[%emt 00:00:09]} 30. Bf1 {[%clk 00:23:29]} {[%emt 00:02:41]} f2 {[%clk
00:23:42]} {[%emt 00:00:18]} 0-1

[Event "Allsvenskan Div II 5 2023/2024: SS Manhem III - Molndals SK"]
[Site "Goteborgs schackcentrum, Vegatan 20, Gothenburg, Sweden"]
[Date "2023.12.02"]
[Round "1.3"]
[White "Teiffel, Henrik"]
[Black "Almemo, Fredrik"]
[Result "1/2-1/2"]
[TimeControl "90 minutes for 40 moves + 30 minutes for the rest of the game + 30 seconds per move from move one."]
[WhiteFideId "1723820"]
[BlackFideId "1721186"]
[WhiteElo "1866"]
[BlackElo "1841"]

1. e4 {[%clk 01:30:58]} {[%emt 00:00:02]} e6 {[%clk 01:30:54]} {[%emt
00:00:06]} 2. d3 {[%clk 01:30:53]} {[%emt 00:00:34]} d5 {[%clk 01:29:37]}
{[%emt 00:01:46]} 3. Nd2 {[%clk 01:31:03]} {[%emt 00:00:21]} c5 {[%clk
01:27:25]} {[%emt 00:02:42]} 4. Ngf3 {[%clk 01:30:57]} {[%emt 00:00:35]} Nc6
{[%clk 01:27:38]} {[%emt 00:00:18]} 5. g3 {[%clk 01:30:26]} {[%emt 00:01:01]}
Nf6 {[%clk 01:27:38]} {[%emt 00:00:30]} 6. Bg2 {[%clk 01:30:33]} {[%emt
00:00:23]} Be7 {[%clk 01:27:46]} {[%emt 00:00:22]} 7. O-O {[%clk 01:30:45]}
{[%emt 00:00:18]} O-O {[%clk 01:28:11]} {[%emt 00:00:05]} 8. Re1 {[%clk
01:29:56]} {[%emt 00:01:19]} Qc7 {[%clk 01:27:29]} {[%emt 00:01:12]} 9. c3
{[%clk 01:27:11]} {[%emt 00:03:15]} b6 {[%clk 01:26:28]} {[%emt 00:01:31]} 10.
Qe2 {[%clk 01:21:46]} {[%emt 00:05:54]} Ba6 {[%clk 01:24:34]} {[%emt 00:02:25]}
11. e5 {[%clk 01:21:16]} {[%emt 00:01:00]} Nd7 {[%clk 01:23:22]} {[%emt
00:01:42]} 12. Nf1 {[%clk 01:18:22]} {[%emt 00:03:24]} Rab8 {[%clk 01:18:51]}
{[%emt 00:05:02]} 13. Bf4 {[%clk 01:13:11]} {[%emt 00:05:40]} b5 {[%clk
01:14:58]} {[%emt 00:04:23]} 14. Ne3 {[%clk 01:08:12]} {[%emt 00:05:28]} d4
{[%clk 01:05:37]} {[%emt 00:09:51]} 15. Ng4 {[%clk 00:58:00]} {[%emt 00:10:42]}
h5 {[%clk 00:48:55]} {[%emt 00:17:13]} 16. Nf6+ {[%clk 00:57:35]} {[%emt
00:00:54]} gxf6 {[%clk 00:47:37]} {[%emt 00:01:26]} 17. exf6 {[%clk 00:58:03]}
{[%emt 00:00:25]} Bd6 {[%clk 00:46:30]} {[%emt 00:01:37]} 18. Bh6 {[%clk
00:46:30]} {[%emt 00:12:03]} Nxf6 {[%clk 00:41:12]} {[%emt 00:05:48]} 19. Bxf8
{[%clk 00:46:13]} {[%emt 00:00:46]} Bxf8 {[%clk 00:41:32]} {[%emt 00:00:10]} 20.
Ng5 {[%clk 00:43:22]} {[%emt 00:03:22]} Bb7 {[%clk 00:29:47]} {[%emt 00:12:15]}
21. Ne4 {[%clk 00:30:33]} {[%emt 00:13:18]} Nxe4 {[%clk 00:23:25]} {[%emt
00:06:52]} 22. Bxe4 {[%clk 00:30:23]} {[%emt 00:00:40]} Ne7 {[%clk 00:22:56]}
{[%emt 00:00:59]} 23. Qxh5 {[%clk 00:27:55]} {[%emt 00:02:59]} Bxe4 {[%clk
00:23:22]} {[%emt 00:00:04]} 24. Rxe4 {[%clk 00:28:04]} {[%emt 00:00:21]} dxc3
{[%clk 00:21:44]} {[%emt 00:02:08]} 25. bxc3 {[%clk 00:26:13]} {[%emt
00:02:20]} Qd6 {[%clk 00:20:19]} {[%emt 00:01:55]} 26. d4 {[%clk 00:19:51]}
{[%emt 00:06:53]} Qd5 {[%clk 00:15:57]} {[%emt 00:04:52]} 27. Re5 {[%clk
00:18:22]} {[%emt 00:01:58]} Qc4 {[%clk 00:16:26]} {[%emt 00:00:02]} 28. Rxc5
{[%clk 00:17:07]} {[%emt 00:01:45]} Qd3 {[%clk 00:16:09]} {[%emt 00:00:47]} 29.
Rc7 {[%clk 00:13:02]} {[%emt 00:04:34]} Ng6 {[%clk 00:12:53]} {[%emt 00:03:47]}
30. Re1 {[%clk 00:09:11]} {[%emt 00:04:21]} Bg7 {[%clk 00:07:06]} {[%emt
00:06:18]} 31. Rd1 {[%clk 00:07:52]} {[%emt 00:01:47]} Qc2 {[%clk 00:05:57]}
{[%emt 00:01:40]} 32. Qf3 {[%clk 00:07:33]} {[%emt 00:00:49]} Nh8 {[%clk
00:05:20]} {[%emt 00:01:07]} 33. Rxa7 {[%clk 00:07:15]} {[%emt 00:00:47]} Rc8
{[%clk 00:05:12]} {[%emt 00:00:39]} 34. Rd3 {[%clk 00:06:12]} {[%emt 00:01:31]}
b4 {[%clk 00:04:29]} {[%emt 00:01:15]} 35. cxb4 {[%clk 00:05:02]} {[%emt
00:01:39]} Qb1+ {[%clk 00:04:24]} {[%emt 00:00:36]} 36. Kg2 {[%clk 00:05:23]}
{[%emt 00:00:09]} Rc1 {[%clk 00:04:20]} {[%emt 00:00:34]} 37. Ra8+ {[%clk
00:04:57]} {[%emt 00:00:55]} Bf8 {[%clk 00:04:49]} 38. Qe2 {[%clk 00:01:55]}
{[%emt 00:03:32]} Re1 {[%clk 00:04:24]} {[%emt 00:00:56]} 39. Qd2 {[%clk
00:01:41]} {[%emt 00:00:44]} Rh1 {[%clk 00:02:23]} {[%emt 00:02:31]} 40. Kf3
{[%clk 00:00:44]} {[%emt 00:01:26]} Rxh2 {[%clk 00:02:18]} {[%emt 00:00:36]} 41.
Rda3 {[%clk 00:29:33]} {[%emt 00:01:41]} Qf5+ {[%clk 00:28:50]} {[%emt
00:03:58]} 42. Qf4 {[%clk 00:28:45]} {[%emt 00:01:17]} Qd5+ {[%clk 00:28:32]}
{[%emt 00:00:48]} 43. Ke3 {[%clk 00:28:17]} {[%emt 00:00:58]} Ng6 {[%clk
00:27:58]} {[%emt 00:01:05]} 44. Qf3 {[%clk 00:27:47]} {[%emt 00:00:59]} Qg5+
{[%clk 00:25:28]} {[%emt 00:03:01]} 45. Ke2 {[%clk 00:26:36]} {[%emt 00:01:39]}
Qb5+ {[%clk 00:25:29]} {[%emt 00:00:31]} 46. Qd3 {[%clk 00:26:04]} {[%emt
00:01:02]} Qxb4 {[%clk 00:24:28]} {[%emt 00:01:31]} 1/2-1/2

[Event "Allsvenskan Div II 5 2023/2024: SS Manhem III - Molndals SK"]
[Site "Goteborgs schackcentrum, Vegatan 20, Gothenburg, Sweden"]
[Date "2023.12.02"]
[Round "1.4"]
[White "Ahlqvist, Jonas"]
[Black "Johansson, Mats"]
[Result "0-1"]
[TimeControl "90 minutes for 40 moves + 30 minutes for the rest of the game + 30 seconds per move from move one."]
[WhiteFideId "1721330"]
[BlackFideId "1722913"]
[WhiteElo "1788"]
[BlackElo "1792"]

1. e4 {[%clk 01:30:38]} e6 {[%clk 01:30:59]} {[%emt 00:00:22]} 2. d4 {[%clk
01:30:58]} {[%emt 00:00:10]} a6 {[%clk 01:31:24]} {[%emt 00:00:04]} 3. Nf3
{[%clk 01:30:39]} {[%emt 00:00:50]} b5 {[%clk 01:31:46]} {[%emt 00:00:08]} 4.
Bf4 {[%clk 01:26:59]} {[%emt 00:04:10]} Bb7 {[%clk 01:31:27]} {[%emt 00:00:49]}
5. Nbd2 {[%clk 01:26:12]} {[%emt 00:01:16]} c5 {[%clk 01:29:57]} {[%emt
00:02:01]} 6. c3 {[%clk 01:25:03]} {[%emt 00:01:40]} Nf6 {[%clk 01:23:26]}
{[%emt 00:07:01]} 7. Bd3 {[%clk 01:23:34]} {[%emt 00:01:58]} Be7 {[%clk
01:11:12]} {[%emt 00:12:43]} 8. O-O {[%clk 01:23:14]} {[%emt 00:00:51]} O-O
{[%clk 01:07:12]} {[%emt 00:04:30]} 9. a4 {[%clk 01:15:38]} {[%emt 00:08:05]}
Qb6 {[%clk 00:55:06]} {[%emt 00:12:37]} 10. Qb3 {[%clk 00:55:01]} {[%emt
00:21:07]} b4 {[%clk 00:47:15]} {[%emt 00:08:20]} 11. Rfe1 {[%clk 00:46:44]}
{[%emt 00:08:49]} a5 {[%clk 00:40:56]} {[%emt 00:06:48]} 12. Rad1 {[%clk
00:42:04]} {[%emt 00:05:10]} d5 {[%clk 00:35:34]} {[%emt 00:05:52]} 13. exd5
{[%clk 00:38:37]} {[%emt 00:03:57]} Nxd5 {[%clk 00:33:35]} {[%emt 00:02:29]} 14.
Bg3 {[%clk 00:35:19]} {[%emt 00:03:48]} bxc3 {[%clk 00:28:08]} {[%emt
00:05:58]} 15. Qxb6 {[%clk 00:26:08]} {[%emt 00:09:40]} Nxb6 {[%clk 00:28:30]}
{[%emt 00:00:08]} 16. bxc3 {[%clk 00:26:25]} {[%emt 00:00:12]} Nxa4 {[%clk
00:27:31]} {[%emt 00:01:30]} 17. Rb1 {[%clk 00:25:29]} {[%emt 00:01:26]} Bxf3
{[%clk 00:26:29]} {[%emt 00:01:31]} 18. Nxf3 {[%clk 00:25:38]} {[%emt
00:00:21]} Nxc3 {[%clk 00:25:24]} {[%emt 00:01:36]} 19. Rb7 {[%clk 00:25:15]}
{[%emt 00:00:53]} Nc6 {[%clk 00:20:45]} {[%emt 00:05:10]} 20. dxc5 {[%clk
00:22:50]} {[%emt 00:02:54]} Bxc5 {[%clk 00:16:43]} {[%emt 00:04:32]} 21. Ne5
{[%clk 00:19:15]} {[%emt 00:04:06]} Nxe5 {[%clk 00:12:21]} {[%emt 00:04:51]} 22.
Bxe5 {[%clk 00:19:31]} {[%emt 00:00:13]} Bb4 {[%clk 00:12:24]} {[%emt
00:00:28]} 23. Rc1 {[%clk 00:17:15]} {[%emt 00:02:46]} Rac8 {[%clk 00:11:56]}
{[%emt 00:00:58]} 24. Kf1 {[%clk 00:17:27]} {[%emt 00:00:18]} Rfd8 {[%clk
00:10:39]} {[%emt 00:01:46]} 25. Ba6 {[%clk 00:16:03]} {[%emt 00:01:55]} Rc5
{[%clk 00:08:47]} {[%emt 00:02:22]} 26. Bf4 {[%clk 00:09:44]} {[%emt 00:06:49]}
Rcd5 {[%clk 00:06:06]} {[%emt 00:03:10]} 27. g3 {[%clk 00:09:27]} {[%emt
00:00:49]} g5 {[%clk 00:04:53]} {[%emt 00:01:42]} 28. Be3 {[%clk 00:08:38]}
{[%emt 00:01:19]} h6 {[%clk 00:04:30]} {[%emt 00:00:54]} 29. Bc4 {[%clk
00:06:13]} {[%emt 00:02:54]} R5d7 {[%clk 00:04:25]} {[%emt 00:00:34]} 30. Rb6
{[%clk 00:06:08]} {[%emt 00:00:36]} Rd6 {[%clk 00:04:24]} {[%emt 00:00:31]} 31.
Rb7 {[%clk 00:06:24]} {[%emt 00:00:14]} R8d7 {[%emt 00:00:12]} 32. Rb8+ {[%emt
00:00:13]} Rd8 {[%clk 00:04:15]} {[%emt 00:00:14]} 33. Rb7 {[%clk 00:06:47]}
{[%emt 00:00:06]} R8d7 {[%clk 00:04:41]} {[%emt 00:00:04]} 34. Rb8+ {[%clk
00:07:04]} {[%emt 00:00:13]} Kg7 {[%clk 00:05:09]} {[%emt 00:00:03]} 35. h4
{[%clk 00:05:47]} {[%emt 00:01:47]} gxh4 {[%clk 00:04:33]} {[%emt 00:01:06]} 36.
gxh4 {[%clk 00:06:13]} {[%emt 00:00:04]} Ne4 {[%clk 00:03:15]} {[%emt
00:01:47]} 37. Kg2 {[%clk 00:06:01]} {[%emt 00:00:43]} Bd2 {[%clk 00:02:36]}
{[%emt 00:01:08]} 38. Rg1 {[%clk 00:05:10]} {[%emt 00:01:22]} Bxe3 {[%clk
00:01:42]} {[%emt 00:01:24]} 39. fxe3 {[%clk 00:05:22]} {[%emt 00:00:18]} Kf6
{[%clk 00:01:30]} {[%emt 00:00:41]} 40. Rh8 {[%clk 00:05:00]} {[%emt 00:00:52]}
Kg7 {[%clk 00:00:59]} {[%emt 00:01:02]} 41. Ra8 {[%clk 00:04:17]} {[%emt
00:01:13]} Nd2 {[%clk 00:25:43]} {[%emt 00:05:45]} 42. Be2 {[%clk 00:29:47]}
{[%emt 00:05:01]} Rd5 {[%clk 00:22:41]} {[%emt 00:03:33]} 43. Kf2+ {[%clk
00:27:51]} {[%emt 00:02:26]} Kh7 {[%clk 00:16:55]} {[%emt 00:06:16]} 44. Rgg8
{[%clk 00:24:08]} {[%emt 00:04:12]} Ne4+ {[%clk 00:17:03]} {[%emt 00:00:22]} 45.
Kg2 {[%clk 00:19:13]} {[%emt 00:05:25]} Nf6 {[%clk 00:16:46]} {[%emt 00:00:47]}
46. Rh8+ {[%clk 00:19:13]} {[%emt 00:00:30]} Kg7 {[%clk 00:17:02]} {[%emt
00:00:14]} 47. Bf3 {[%clk 00:17:31]} {[%emt 00:02:12]} Re5 {[%clk 00:16:02]}
{[%emt 00:01:30]} 48. e4 {[%clk 00:16:22]} {[%emt 00:01:39]} Rd3 {[%clk
00:13:05]} {[%emt 00:03:25]} 49. Kg3 {[%clk 00:13:42]} {[%emt 00:03:12]} Rxe4
{[%clk 00:12:02]} {[%emt 00:01:33]} 0-1

[Event "Allsvenskan Div II 5 2023/2024: SS Manhem III - Molndals SK"]
[Site "Goteborgs schackcentrum, Vegatan 20, Gothenburg, Sweden"]
[Date "2023.12.02"]
[Round "1.5"]
[White "Thornberg, Bo"]
[Black "Eldh, Hjalmar"]
[Result "1/2-1/2"]
[TimeControl "90 minutes for 40 moves + 30 minutes for the rest of the game + 30 seconds per move from move one."]
[WhiteFideId "1724665"]
[BlackFideId "1767968"]
[WhiteElo "1724"]
[BlackElo "1758"]

1. f4 {[%clk 01:30:30]} {[%emt 00:19:19]} d5 {[%clk 01:29:39]} {[%emt
00:01:27]} 2. Nf3 {[%clk 01:31:20]} {[%emt 00:00:08]} Nf6 {[%clk 01:29:54]}
{[%emt 00:00:15]} 3. e3 {[%clk 01:31:41]} {[%emt 00:00:08]} c5 {[%clk
01:29:06]} {[%emt 00:01:18]} 4. b3 {[%clk 01:31:44]} {[%emt 00:00:27]} Nc6
{[%clk 01:28:04]} {[%emt 00:01:32]} 5. Bb5 {[%clk 01:31:52]} {[%emt 00:00:22]}
Bd7 {[%clk 01:28:22]} {[%emt 00:00:13]} 6. Bb2 {[%clk 01:32:08]} {[%emt
00:00:14]} e6 {[%clk 01:28:35]} {[%emt 00:00:17]} 7. O-O {[%clk 01:32:18]}
{[%emt 00:00:20]} Bd6 {[%clk 01:27:57]} {[%emt 00:01:08]} 8. d3 {[%clk
01:32:00]} {[%emt 00:00:48]} O-O {[%clk 01:28:08]} {[%emt 00:00:18]} 9. Nbd2
{[%clk 01:32:09]} {[%emt 00:00:21]} a6 {[%clk 01:26:00]} {[%emt 00:02:38]} 10.
Bxc6 {[%clk 01:32:30]} {[%emt 00:00:10]} Bxc6 {[%clk 01:26:15]} {[%emt
00:00:15]} 11. Ne5 {[%clk 01:32:20]} {[%emt 00:00:40]} Rc8 {[%clk 01:24:09]}
{[%emt 00:02:36]} 12. a4 {[%clk 01:28:35]} {[%emt 00:04:14]} d4 {[%clk
01:19:23]} {[%emt 00:05:17]} 13. Ndc4 {[%clk 01:21:48]} {[%emt 00:07:17]} dxe3
{[%clk 01:19:21]} {[%emt 00:00:33]} 14. Qe2 {[%clk 01:16:37]} {[%emt 00:05:39]}
Nd5 {[%clk 01:17:42]} {[%emt 00:02:09]} 15. Nxe3 {[%clk 01:11:59]} {[%emt
00:05:08]} Qh4 {[%clk 01:10:51]} {[%emt 00:07:22]} 16. g3 {[%clk 01:07:18]}
{[%emt 00:05:12]} Bxe5 {[%clk 00:59:15]} {[%emt 00:12:05]} 17. gxh4 {[%clk
01:02:28]} {[%emt 00:05:19]} Bxb2 {[%clk 00:59:38]} {[%emt 00:00:08]} 18. Nxd5
{[%clk 01:01:10]} {[%emt 00:01:48]} Bxd5 {[%clk 00:59:57]} {[%emt 00:00:11]} 19.
c4 {[%clk 00:56:05]} {[%emt 00:05:35]} Bd4+ {[%clk 01:00:20]} {[%emt 00:00:07]}
20. Rf2 {[%clk 00:56:20]} {[%emt 00:00:14]} Bxa1 {[%clk 01:00:45]} {[%emt
00:00:05]} 21. cxd5 {[%clk 00:55:59]} {[%emt 00:00:52]} Bd4 {[%clk 01:00:59]}
{[%emt 00:00:16]} 22. dxe6 {[%clk 00:55:02]} {[%emt 00:01:27]} fxe6 {[%clk
00:55:47]} {[%emt 00:05:41]} 23. Kg2 {[%clk 00:49:58]} {[%emt 00:05:34]} Bxf2
{[%clk 00:55:48]} {[%emt 00:00:30]} 24. Qxf2 {[%clk 00:43:26]} {[%emt
00:07:02]} e5 {[%clk 00:52:07]} {[%emt 00:04:12]} 25. f5 {[%clk 00:42:58]}
{[%emt 00:00:57]} g6 {[%clk 00:48:10]} {[%emt 00:04:27]} 26. Qf3 {[%clk
00:39:29]} {[%emt 00:03:59]} Rf7 {[%clk 00:44:42]} {[%emt 00:03:58]} 27. Qd5
{[%clk 00:37:30]} {[%emt 00:02:29]} gxf5 {[%clk 00:44:15]} {[%emt 00:00:57]} 28.
Qxe5 {[%clk 00:37:05]} {[%emt 00:00:55]} Rd8 {[%clk 00:40:46]} {[%emt
00:03:58]} 29. Qxc5 {[%clk 00:34:39]} {[%emt 00:02:56]} Rxd3 {[%clk 00:41:01]}
{[%emt 00:00:14]} 30. Qc4 {[%clk 00:32:40]} {[%emt 00:02:30]} Rd6 {[%clk
00:31:58]} {[%emt 00:09:14]} 31. Qf4 {[%clk 00:23:39]} {[%emt 00:09:50]} Rfd7
{[%clk 00:29:07]} {[%emt 00:03:20]} 32. Qxf5 {[%clk 00:18:15]} {[%emt
00:05:56]} Rd2+ {[%clk 00:27:25]} {[%emt 00:02:11]} 33. Kh1 {[%clk 00:15:41]}
{[%emt 00:03:05]} Rd1+ {[%clk 00:21:01]} {[%emt 00:06:54]} 34. Kg2 {[%clk
00:16:03]} {[%emt 00:00:08]} Rg7+ {[%emt 00:00:05]} 35. Kh3 {[%emt 00:00:16]}
Rd8 {[%clk 00:19:36]} {[%emt 00:01:33]} 36. a5 {[%clk 00:10:55]} {[%emt
00:05:38]} h5 {[%clk 00:19:32]} {[%emt 00:00:34]} 37. Qe6+ {[%clk 00:09:41]}
{[%emt 00:01:45]} Kh8 {[%clk 00:18:57]} {[%emt 00:01:04]} 38. Qh6+ {[%clk
00:09:40]} {[%emt 00:00:31]} Kg8 {[%clk 00:19:11]} {[%emt 00:00:13]} 39. Qe6+
{[%clk 00:09:54]} {[%emt 00:00:19]} Kh8 {[%clk 00:16:35]} {[%emt 00:03:06]}
1/2-1/2